Cogmind - Beta 10.1 @@@ ROGUE MODE // 2020.10.13 @ 17:47:15 Player: Cracklepappy Result: Destroyed by LE-A2Q(M) with Battle Rifle Performance ------------- Evolutions (3) 1500 Regions Visited (12) 2400 Robots Destroyed (273) 1365 Value Destroyed (7508) 7508 Prototype IDs (45) 900 Alien Tech Used (0) 0 Bonus (1441) 1441 TOTAL SCORE: 15114 Bonus ------- High Alert Combat Kills 722 Follower Combat Kills 794 Aligned with FarCom 300 Met Imprinter 300 Was Imprinted 300 Friendly Fire -975 Cogmind --------- Core Integrity 0/700 Matter 296/300 Energy 170/170 System Corruption 0% Temperature Cool (0) Movement Hovering (72) Location -7/Zion Parts ------- > --- POWER (1) -------- Makeshift Power Source > --- PROPULSION (3) --- Combat Airjet Combat Airjet Combat Antigrav System > --- UTILITY (7) ------ Improved Cooling System Large Storage Unit High-capacity Storage Unit Experimental Targeting Computer Advanced Core Analyzer Improved Weapon Shielding Makeshift Armor Plating > --- WEAPON (2) ------- KE Penetrator CR-A16's Pointy Stick > --- INVENTORY (18) --- Cold Fusion Reactor Neutrino Core Combat Airjet Coolant Injector High-capacity Battery (400) Medium Matter Pod (100) Gravity Neutralizing Apparatus Makeshift Sensor Array Advanced Signal Interpreter Advanced Component Analysis Suite System Purifier Advanced Recalibrator Phasing AFG Phase Cannon Advanced Assault Cannon Slug Cannon Plasma Cutter Makeshift Spear Peak State ------------ > --- POWER ------------ Light Fission Core > --- PROPULSION ------- Combat Airjet Combat Airjet Combat Antigrav System > --- UTILITY ---------- Large Storage Unit High-capacity Storage Unit Experimental Targeting Computer Advanced Core Analyzer Heart of Steel > --- WEAPON ----------- KE Penetrator CR-A16's Pointy Stick > --- INVENTORY -------- Cold Fusion Reactor Combat Airjet Coolant Injector High-capacity Battery Medium Matter Pod Gravity Neutralizing Apparatus Advanced Signal Interpreter Advanced Transmission Jammer Improved Weapon Shielding Hardened Medium Armor Plating Advanced Component Analysis Suite System Purifier Advanced Recalibrator Improved Field Recycling Unit Phasing AFG Phase Cannon Advanced Assault Cannon Plasma Cutter [Rating: 82] Favorites ----------- Power Light Fission Core Engine Improved Ion Engine Power Core Light Fission Core Reactor Cold Fusion Reactor Propulsion Combat Airjet Treads Light Treads Wheel Wheel Hover Unit Combat Airjet Utility Large Storage Unit Device Heart of Steel Storage Large Storage Unit Processor Experimental Targeting Computer Hackware System Shield Protection Improved Weapon Shielding Weapon CR-A16's Pointy Stick Energy Gun Medium Laser Energy Cannon Improved EM Pulse Cannon Ballistic Gun KE Penetrator Ballistic Cannon Light Cannon Launcher Rocket Launcher Special Weapon Field Lobotomy Kit Impact Weapon Powered Hammer Slashing Weapon Katana Piercing Weapon CR-A16's Pointy Stick Build | -11 -10 -10 -9 -9 -9 -8 -8 -8 -7 -7 -7 -7 ------- Run | Scr Mat Min Mat Min Exi Min Mat Sto Fac Low Low Zio Slots Evolved 6 | . . . 2 . . . 2 . 2 . . . Power . | . . . . . . . . . . . . . Propulsion 1 | . . . . . . . . . 1 . . . Utility 5 | . . . 2 . . . 2 . 1 . . . Weapon . | . . . . . . . . . . . . . Parts Attached 241 | 7 12 4 23 5 18 3 21 21 59 13 39 16 Power 20 | 1 2 2 1 1 1 . 2 3 3 . 2 2 Engine 11 | 1 2 1 1 1 1 . . 1 2 . . 1 Core 8 | . . 1 . . . . 2 1 1 . 2 1 Reactor 1 | . . . . . . . . 1 . . . . Propulsion 42 | 2 5 . 9 . 3 . 3 4 7 . 9 . Treads 38 | 1 5 . 9 . 3 . 3 4 7 . 6 . Leg . | . . . . . . . . . . . . . Wheel 1 | 1 . . . . . . . . . . . . Hover 3 | . . . . . . . . . . . 3 . Flight . | . . . . . . . . . . . . . Utility 83 | 2 2 . 7 . 7 . 12 8 14 7 12 12 Device 25 | 1 . . . . 1 . 3 4 5 3 3 5 Storage 15 | 1 2 . 2 . 3 . 3 . 2 1 . 1 Processor 4 | . . . . . . . . . . . 4 . Hackware 2 | . . . . . . . 1 . 1 . . . Protection 37 | . . . 5 . 3 . 5 4 6 3 5 6 Artifact . | . . . . . . . . . . . . . Weapon 96 | 2 3 2 6 4 7 3 4 6 35 6 16 2 Energy Gun 3 | 1 . . . . . . . 1 1 . . . Energy Cannon 2 | . . . . . . . . . 2 . . . Ballistic Gun 44 | 1 2 1 4 2 3 1 2 . 13 4 10 1 Ballistic Cannon 12 | . . 1 . 1 1 1 1 3 2 . 2 . Launcher 20 | . . . 2 1 1 1 1 1 12 . 1 . Special Weapon 2 | . 1 . . . 1 . . . . . . . Impact Weapon 8 | . . . . . . . . . 5 2 1 . Slashing Weapon 2 | . . . . . 1 . . 1 . . . . Piercing Weapon 3 | . . . . . . . . . . . 2 1 Special Melee Weapon . | . . . . . . . . . . . . . Unidentified Prototypes 6 | . . . . . 2 . 1 1 . . 1 1 Parts Lost 60 | . 4 3 6 3 5 1 3 2 11 2 19 1 Power 10 | . 1 1 1 1 1 1 . . 1 . 2 1 Propulsion 22 | . 2 . 1 . 2 . 2 2 5 . 8 . Utility 11 | . . . 2 . . . . . 3 1 5 . Weapon 17 | . 1 2 2 2 2 . 1 . 2 1 4 . Highest Loss Streak 7 | . 2 2 2 2 2 1 1 2 2 2 7 1 Average Slot Usage (%) 90 | . 99 99 95 98 98 89 94 99 96 99 83 86 Engine 2 | . 13 12 7 9 11 1 . 6 6 7 . . Core 4 | . . 1 3 . . . 5 2 . . 5 6 Treads 7 | . 26 28 22 22 22 22 17 17 22 23 17 . Hover 15 | . . . . . . . . . . . 1 23 Device 6 | . 4 . . . . . . 1 2 3 . 9 Storage 19 | . 23 28 32 33 35 44 36 36 30 30 27 12 Processor 10 | . . . . . . . . . . . 5 15 Hackware 1 | . . . . . . . 7 9 8 3 . . Protection 4 | . . . 7 11 8 . 9 7 7 14 10 2 Ballistic Gun 8 | . 20 24 17 14 12 9 4 1 11 9 7 7 Ballistic Cannon 1 | . . 3 4 6 6 9 12 10 1 . 1 . Piercing Weapon 4 | . . . . . . . . . . . 1 7 Naked Turns . | . . . . . . . . . . . . . Heaviest Build 132 | 14 41 42 69 69 94 91 121 124 132 126 102 85 Greatest Support 78 | 10 40 40 43 40 40 40 40 40 68 68 78 74 Greatest Overweight (x) 28 | 1 1 1 1 1 2 2 3 5 2 1 4 28 Average Overweight (x) 5 | . . . 1 1 1 2 2 2 1 1 1 9 Largest Inventory Capacity 32 | 6 16 16 22 22 30 30 32 32 32 32 30 18 Average Capacity 19 | 5 12 16 21 22 25 30 30 32 32 30 27 16 Most Carried 32 | 6 16 16 22 22 30 29 32 32 32 30 30 18 Average Carried 18 | 3 11 15 21 21 23 29 29 31 30 28 25 14 Final Capacity 32 | 6 16 16 22 22 30 30 32 32 32 30 18 18 Final Carried 32 | 6 16 16 22 22 29 29 32 32 28 30 18 18 Class Distribution -------------------- 68% | Scavenger-Mutant 27% | Hauler-Mutant 3% | Mutant Dominant Class ---------------- Mutant | -10/Materials Mutant | -10/Mines Hauler-Mutant | -9/Materials Hauler-Mutant | -9/Mines Hauler-Mutant | -9/Exiles Hauler-Mutant | -8/Mines Hauler-Mutant | -8/Materials Hauler-Mutant | -8/Storage Hauler-Mutant | -7/Factory Hauler-Mutant | -7/Lower Caves Hauler-Mutant | -7/Lower Caves Scavenger-Mutant | -7/Zion Resources | -11 -10 -10 -9 -9 -9 -8 -8 -8 -7 -7 -7 -7 ----------- Run | Scr Mat Min Mat Min Exi Min Mat Sto Fac Low Low Zio Matter Collected 10094 | 303 381 190 874 142 1091 206 528 1077 1917 285 950 2150 Remotely . | . . . . . . . . . . . . . Salvage Created 8726 | 140 698 135 1419 342 527 87 709 621 2307 392 1197 152 Parts 544 | 10 42 7 120 26 79 7 28 30 126 14 45 10 Haulers Intercepted 14 | . 1 . 4 . . . 2 5 2 . . . Recyclers Shooed 10 | . 2 . . 1 . 1 1 1 4 . . . Parts Field Recycled 38 | . . . . . . . . . 21 1 . 16 Retrieved Matter 230 | . . . . . . . . . 134 1 . 95 Parts Self-Destructed 138 | . . . . . . . . . . 12 48 78 Prevented 1 | . . . . . . . . . . . 1 . Kills | -11 -10 -10 -9 -9 -9 -8 -8 -8 -7 -7 -7 -7 ------- Run | Scr Mat Min Mat Min Exi Min Mat Sto Fac Low Low Zio Combat Hostiles Destroyed 195 | . 15 11 38 10 3 4 17 15 52 4 25 1 Melee 2 | . . 1 . . . . . 1 . . . . Guns 107 | . 15 9 26 6 1 1 4 1 24 4 15 1 Cannons 44 | . . 1 7 1 1 . 13 13 2 . 6 . AOE 39 | . . . 5 3 1 3 . . 25 . 2 . Classes Destroyed 18 | 2 5 1 4 . 2 1 . 1 1 . . 1 Worker 14 | . 1 . 3 . . 1 2 1 6 . . . Builder 9 | . . . 1 1 . 1 . . 6 . . . Tunneler 6 | 4 . . 1 . . . . . 1 . . . Hauler 14 | . 1 . 4 . . . 2 5 2 . . . Recycler 7 | 1 . . . . . . 1 . 5 . . . Operator 1 | . . . . . . . . 1 . . . . Turret 1 | . . . . . 1 . . . . . . . Watcher 10 | . 3 . 4 . . . . 1 2 . . . Swarmer 55 | . 3 3 15 3 . 3 4 4 13 . 7 . Grunt 79 | . 12 . 12 4 . . 7 2 28 3 11 . Brawler 8 | . . . 1 1 . . . . 2 . 4 . Duelist 5 | . . . 1 . . . . 1 1 . 2 . Sentry 29 | . . . 9 2 . . 5 8 3 1 1 . Hunter 3 | . . . . . . 1 1 . . . 1 . Programmer 5 | . . . . . . . . . 5 . . . Zionite 6 | . . . . . 5 . . . . . . 1 Decomposer 1 | . . . . . . . . . . . 1 . Packrat 2 | . . . . . . . . . . 2 . . Tinkerer 2 | . . . . . . . . . . . . 2 Assembled 10 | . . 8 . . 2 . . . . . . . Savage 1 | . . . . . . . . . . . . 1 Best Kill Streak 10 | 5 5 8 6 3 2 5 10 4 9 3 4 3 Combat Bots Only 8 | . 5 8 4 3 1 3 7 3 5 3 4 1 Max Kills in Single Turn 4 | 1 2 1 3 2 1 3 2 1 4 1 2 1 Gunslinging . | . . . . . . . . . . . . . Exploded 2 | . . . 2 2 1 2 . . 2 . 2 . Melee 1 | . . 1 . . . . . 1 . . . . Uniques/NPCs Destroyed 5 | . . . . . 4 . . . . . . 1 8R-AWN (-9/Exiles) EX-HEX (-9/Exiles) EX-BIN (-9/Exiles) EX-DEC (-9/Exiles) Imprinter (-7/Zion) Combat | -11 -10 -10 -9 -9 -9 -8 -8 -8 -7 -7 -7 -7 -------- Run | Scr Mat Min Mat Min Exi Min Mat Sto Fac Low Low Zio Damage Taken 13326 | . 759 499 1561 408 851 312 864 1290 3543 318 2477 444 Core 1719 | . 126 97 237 39 34 28 168 287 274 30 271 128 Absorbed by Shields . | . . . . . . . . . . . . . Core Remaining (%) 35 | 100 . 10 . . . 15 . 17 . . . . Volleys Fired 772 | 11 64 26 121 22 122 10 57 72 145 8 95 19 Largest 2 | 2 2 2 2 2 2 2 2 2 2 2 2 1 Hottest 100 | 70 100 55 58 58 58 58 79 88 88 53 73 33 Shots Fired 1306 | 22 127 52 237 40 162 18 113 134 238 16 128 19 Gun 904 | 22 126 39 166 30 150 8 41 17 165 16 105 19 Cannon 339 | . . 13 67 7 2 8 71 115 34 . 22 . Launcher 57 | . . . 4 3 5 2 1 2 39 . 1 . Special 6 | . 1 . . . 5 . . . . . . . Kinetic 1193 | 11 93 52 233 37 152 16 112 132 193 16 127 19 Thermal 45 | 11 34 . . . . . . . . . . . Explosive 42 | . . . 4 3 5 2 1 . 27 . . . Electromagnetic 21 | . . . . . . . . 2 18 . 1 . Robot Hit Streak 23 | 10 12 7 16 21 19 5 13 18 23 8 22 7 Robot Miss Streak 17 | 3 4 2 3 1 6 4 4 8 17 4 5 2 Penetration Max 2 | . . . . . 1 . . . . . 2 . Secondary Targets 10 | . 3 1 . 1 . . . . 3 1 1 . Max Gunslinging Chain 1 | . 1 1 . 1 . . . . 1 1 1 . Shots Hit Robots 958 | 16 88 35 167 26 112 9 77 104 189 21 100 14 Core Hits 571 | 6 38 21 86 14 33 8 36 45 207 14 54 9 Critical Hits 55 | . 1 . 4 1 16 . 2 1 1 . 27 2 Critical Kills 18 | . . . 1 . 5 . 1 1 . . 10 . Critical Parts Destroyed 31 | . 1 . 3 1 7 . 1 . 1 . 16 1 Melee Attacks 88 | . . . . . 7 . . 15 9 18 23 16 Impact 43 | . . . . . . . . . 9 18 16 . Slashing 22 | . . . . . 7 . . 15 . . . . Piercing 23 | . . . . . . . . . . . 7 16 Sneak Attacks 4 | . . . . . . . . . . 2 1 1 Combat Hostiles . | . . . . . . . . . . . . . Follow-up Attacks . | . . . . . . . . . . . . . Damage Inflicted 21882 | 197 1105 480 2812 567 2221 304 1561 2153 6952 641 2461 428 Guns 10636 | 197 1105 354 1545 338 1450 69 488 221 2558 304 1690 317 Cannons 4248 | . . 109 727 68 34 52 871 1594 302 . 491 . Explosions 5436 | . . . 523 143 62 183 191 182 4073 . 79 . Melee 1472 | . . . . . 675 . . 148 . 337 201 111 Ramming 90 | . . 17 17 18 . . 11 8 19 . . . Kinetic 14434 | 72 780 463 2272 406 1484 121 1359 1815 2860 304 2181 317 Thermal 565 | 125 325 . . . . . . 75 40 . . . Explosive 4643 | . . . 523 143 62 183 191 . 3541 . . . Electromagnetic 678 | . . . . . . . . 107 492 . 79 . Impact 469 | . . . . . . . . . . 337 132 . Slashing 823 | . . . . . 675 . . 148 . . . . Piercing 180 | . . . . . . . . . . . 69 111 Highest Corruption 10 | . . . . 3 3 3 . . 10 5 . . Average Corruption 3 | . . . . 3 3 3 . . 5 3 . . Corruption Purged 10 | . . . . . . . . . 5 5 . . Effects 140 | . . . . 7 56 10 . . 60 7 . . Message Errors 37 | . . . . 3 17 2 . . 12 3 . . Matter Fused 38 | . . . . 1 17 3 . . 15 2 . . Heat Flow Errors 12 | . . . . 1 5 1 . . 5 . . . Energy Discharges 20 | . . . . 1 5 2 . . 12 . . . Data Loss (minor) 14 | . . . . . 7 1 . . 4 2 . . Data Loss (major) 1 | . . . . . . . . . 1 . . . Misfires 2 | . . . . . . . . . 2 . . . Misdirections 2 | . . . . . . . . . 2 . . . Targeting Errors 10 | . . . . . 3 1 . . 6 . . . Weapon Failures 4 | . . . . 1 2 . . . 1 . . . Overload Shots . | . . . . . . . . . . . . . Overflow Damage 521 | . . . 20 . 70 . 8 24 124 259 16 . Projectiles 15 | . . . . . . . 8 7 . . . . Explosions 161 | . . . 20 . . . . 17 124 . . . Melee 345 | . . . . . 70 . . . . 259 16 . Knockbacks 64 | . . 3 5 . 1 2 5 24 16 1 7 . Impact 2 | . . . . . . . . . . 1 1 . Kinetic 54 | . . 2 4 . 1 2 4 20 15 . 6 . Secondary 8 | . . 1 1 . . . 1 4 1 . . . Self-Inflicted Damage 295 | . . . 89 . . 5 13 . 188 . . . Shots 14 | . . . 3 . . 1 1 . 9 . . . Rammed 15 | . . 4 5 1 . . 1 1 3 . . . Targets Rammed 17 | . . 5 5 2 . . 1 1 3 . . . Kicked . | . . . . . . . . . . . . . Crushed 2 | . . 1 . 1 . . . . . . . . Highest Temperature 651 | 90 112 98 60 217 194 83 129 651 245 14 54 . Average Temperature 65 | 42 32 53 15 43 85 36 46 165 45 8 11 . Received Heat Transfer 3919 | . 339 200 474 144 . . 387 414 978 144 783 56 Effects 28 | . . . . . . . . 28 . . . . Shutdowns 5 | . . . . . . . . 5 . . . . Energy Bleed 4 | . . . . . . . . 4 . . . . Interference 1 | . . . . . . . . 1 . . . . Matter Decay 1 | . . . . . . . . 1 . . . . Short Circuit 5 | . . . . . . . . 5 . . . . Damage (minor) 3 | . . . . . . . . 3 . . . . Damage (major) 7 | . . . . . . . . 7 . . . . Damage (core) 2 | . . . . . . . . 2 . . . . Siege Activations . | . . . . . . . . . . . . . Robots Corrupted 1 | . . . . . . . . . 1 . . . Combat Hostiles 1 | . . . . . . . . . 1 . . . Parts Fried 3 | . . . . . . . . . 2 . 1 . Impact Corruptions 15 | . . . . . . . . . . 13 2 . Robots Melted . | . . . . . . . . . . . . . Combat Hostiles . | . . . . . . . . . . . . . Parts Melted 3 | 2 1 . . . . . . . . . . . Heat Transferred 1532 | 370 962 . . . . . . 100 100 . . . Parts Sabotaged . | . . . . . . . . . . . . . Parts Stolen 2 | . . . . . . . . . . . 2 . Parts Stripped . | . . . . . . . . . . . . . Power Chain Reactions 3 | . . . . . . . . 2 1 . . . Missiles Intercepted . | . . . . . . . . . . . . . Alert | -11 -10 -10 -9 -9 -9 -8 -8 -8 -7 -7 -7 -7 ------- Run | Scr Mat Min Mat Min Exi Min Mat Sto Fac Low Low Zio Peak Influence 1280 | 25 193 154 643 257 . 95 469 262 1280 . . . Initial 149 | . 16 42 . 132 . . 37 149 112 . . . Average 239 | 9 92 74 320 106 . 31 188 108 492 . . . Maximum Alert Level 4 | . . . 2 1 . . 2 1 4 . . . Low Security (%) 56 | 100 100 100 28 87 . 100 51 83 7 . . . Level 1 24 | . . . 36 12 . . 36 16 45 . . . Level 2 13 | . . . 34 . . . 11 . 27 . . . Level 3 2 | . . . . . . . . . 9 . . . Level 4 2 | . . . . . . . . . 10 . . . Level 5 . | . . . . . . . . . . . . . High Security . | . . . . . . . . . . . . . Max Security . | . . . . . . . . . . . . . Squads Dispatched 32 | . 5 . 4 . . . 3 3 16 . 1 . Investigation 7 | . 3 . 2 . . . . . 2 . . . Extermination 4 | . . . . . . . . . 4 . . . Reinforcement 12 | . 2 . 2 . . . 1 1 6 . . . Assault 5 | . . . . . . . . 2 2 . 1 . Garrison 4 | . . . . . . . 2 . 2 . . . Intercept . | . . . . . . . . . . . . . Construction Impeded 1 | . . . . . . . . . 1 . . . Haulers Reinforced 1 | . . . . . . . . . 1 . . . Stealth | -11 -10 -10 -9 -9 -9 -8 -8 -8 -7 -7 -7 -7 --------- Run | Scr Mat Min Mat Min Exi Min Mat Sto Fac Low Low Zio Distress Signals 13 | . 3 . 2 . . . 2 5 1 . . . Communications Jammed . | . . . . . . . . . . . . . Distress Signals . | . . . . . . . . . . . . . Times Spotted 329 | . 31 14 55 10 17 4 24 43 70 4 35 22 Peak Tracking Total 18 | . 4 5 6 3 9 3 7 11 6 3 8 18 Tactical Retreats 20 | . 1 1 7 . 6 . 1 1 2 . 1 . Traps | -11 -10 -10 -9 -9 -9 -8 -8 -8 -7 -7 -7 -7 ------- Run | Scr Mat Min Mat Min Exi Min Mat Sto Fac Low Low Zio Traps Triggered 7 | . 3 . 3 . . . . . 1 . . . Indirectly . | . . . . . . . . . . . . . Trap Hack Attempts . | . . . . . . . . . . . . . Triggered . | . . . . . . . . . . . . . Disarmed . | . . . . . . . . . . . . . Reprogrammed . | . . . . . . . . . . . . . Reused . | . . . . . . . . . . . . . Traps Extracted . | . . . . . . . . . . . . . Installed . | . . . . . . . . . . . . . Triggered . | . . . . . . . . . . . . . Exploded 3 | . . . . . 3 . . . . . . . Machines | -11 -10 -10 -9 -9 -9 -8 -8 -8 -7 -7 -7 -7 ---------- Run | Scr Mat Min Mat Min Exi Min Mat Sto Fac Low Low Zio Machines Disabled 37 | . . . 3 . 14 . . 3 15 . . 2 Max in Single Turn 3 | . . . 1 . 2 . . 1 3 . . 1 Garrison Access 2 | . . . . . . . 1 . 1 . . . Machines Sabotaged . | . . . . . . . . . . . . . Garrisons Compromised . | . . . . . . . . . . . . . Overloaded Fab Kills . | . . . . . . . . . . . . . Fab Network Shutdowns . | . . . . . . . . . . . . . Hacking | -11 -10 -10 -9 -9 -9 -8 -8 -8 -7 -7 -7 -7 --------- Run | Scr Mat Min Mat Min Exi Min Mat Sto Fac Low Low Zio Machines Accessed 44 | . 8 . 11 . 2 . 6 9 4 1 2 1 Terminals 30 | . 6 . 9 . . . 4 9 1 1 . . Fabricators 2 | . . . . . . . . . 2 . . . Repair Stations . | . . . . . . . . . . . . . Recycling Units 2 | . 2 . . . . . . . . . . . Scanalyzers 3 | . . . 2 . . . 1 . . . . . Garrison Access 2 | . . . . . . . 1 . 1 . . . Total Hacks 127 | . 21 . 24 . 2 . 24 36 9 5 2 4 Successful 67 | . 9 . 13 . 2 . 17 17 1 2 2 4 Failed 60 | . 12 . 11 . . . 7 19 8 3 . . Catastrophic 11 | . 2 . 1 . . . 2 4 2 . . . Database Lockouts . | . . . . . . . . . . . . . Manual 62 | . 16 . 8 . 1 . 5 26 1 4 . 1 Terminals 92 | . 18 . 20 . . . 10 36 3 5 . . Fabricators 4 | . . . . . . . . . 4 . . . Repair Stations . | . . . . . . . . . . . . . Recycling Units 3 | . 3 . . . . . . . . . . . Scanalyzers 17 | . . . 4 . . . 13 . . . . . Garrison Access 3 | . . . . . . . 1 . 2 . . . Terminal Hacks 37 | . 5 . 8 . 2 . 4 10 . 2 2 4 Record 2 | . . . . . 1 . . . . 1 . . Part Schematic 7 | . 2 . 1 . . . . . . . . 4 Prototype ID Bank 7 | . 1 . 3 . . . 1 2 . . . . Open Door 3 | . . . . . . . . 1 . . 2 . Branch Access Points 1 | . . . . . . . 1 . . . . . Recycling Unit Index 1 | . . . 1 . . . . . . . . . Unreport Threat 6 | . . . 2 . . . 1 3 . . . . Hauler Manifests 6 | . 2 . 1 . . . 1 2 . . . . Zone Layout 3 | . . . . . . . . 2 . 1 . . EX-Prototype ID Bank 1 | . . . . . 1 . . . . . . . Fabricator Hacks 1 | . . . . . . . . . 1 . . . Load Schematic 1 | . . . . . . . . . 1 . . . Repair Station Hacks . | . . . . . . . . . . . . . Recycling Unit Hacks . | . . . . . . . . . . . . . Scanalyzer 14 | . . . 4 . . . 10 . . . . . Insert Component 6 | . . . 2 . . . 4 . . . . . Analyze 8 | . . . 2 . . . 6 . . . . . Garrison Access Hacks 1 | . . . . . . . 1 . . . . . Seal Access 1 | . . . . . . . 1 . . . . . Unauthorized Hacks 14 | . 4 . 1 . . . 2 7 . . . . Terminals 12 | . 2 . 1 . . . 2 7 . . . . Track 2 | . . . . . . . 1 1 . . . . Assimilate 1 | . 1 . . . . . . . . . . . Botnet 5 | . . . . . . . . 5 . . . . Operators 4 | . 1 . 1 . . . 1 1 . . . . Fabricators . | . . . . . . . . . . . . . Repair Stations . | . . . . . . . . . . . . . Recycling Units 2 | . 2 . . . . . . . . . . . Tunnel 2 | . 2 . . . . . . . . . . . Scanalyzers . | . . . . . . . . . . . . . Garrison Access . | . . . . . . . . . . . . . Data Cores Recovered . | . . . . . . . . . . . . . Used . | . . . . . . . . . . . . . Hacking Detections 32 | . 5 . 11 . . . 4 7 4 1 . . Full Trace Events 2 | . . . . . . . . . 2 . . . Feedback Events . | . . . . . . . . . . . . . Feedback Blocked . | . . . . . . . . . . . . . Robot Schematics Acquired . | . . . . . . . . . . . . . Robots Built . | . . . . . . . . . . . . . Matter . | . . . . . . . . . . . . . Time . | . . . . . . . . . . . . . Total Robot Build Rating . | . . . . . . . . . . . . . Part Schematics Acquired 10 | . 2 . 2 . . . 2 . . . . 4 Parts Built . | . . . . . . . . . . . . . Matter . | . . . . . . . . . . . . . Time . | . . . . . . . . . . . . . Total Part Build Rating . | . . . . . . . . . . . . . Parts Repaired . | . . . . . . . . . . . . . Time . | . . . . . . . . . . . . . Parts Recycled . | . . . . . . . . . . . . . Recycled Matter . | . . . . . . . . . . . . . Retrieved Matter . | . . . . . . . . . . . . . Retrieved Components . | . . . . . . . . . . . . . Parts Scanalyzed 6 | . . . 2 . . . 4 . . . . . Part Schematics Acquired 4 | . . . 2 . . . 2 . . . . . Parts Damaged 1 | . . . . . . . 1 . . . . . Bothacking | -11 -10 -10 -9 -9 -9 -8 -8 -8 -7 -7 -7 -7 ------------ Run | Scr Mat Min Mat Min Exi Min Mat Sto Fac Low Low Zio Used RIF Installer . | . . . . . . . . . . . . . Robots Hacked . | . . . . . . . . . . . . . Non-combat . | . . . . . . . . . . . . . Combat . | . . . . . . . . . . . . . Robot Hacks Applied . | . . . . . . . . . . . . . Relay Couplers Released 5 | . . . . . . . . . 5 . . . Machine Destruction 2 | . . . . . . . . . 2 . . . Programmers 3 | . . . . . . . . . 3 . . . Robots Rewired 2 | . . . . . . . . . . . 2 . Allies Hacked . | . . . . . . . . . . . . . Hacks Repelled . | . . . . . . . . . . . . . Allies | -11 -10 -10 -9 -9 -9 -8 -8 -8 -7 -7 -7 -7 -------- Run | Scr Mat Min Mat Min Exi Min Mat Sto Fac Low Low Zio Total Allies 33 | . . 3 . . 3 . . 12 3 . 2 10 Largest Group 10 | . . 3 . . 3 3 . 10 3 . 2 7 Highest-Rated Group 289 | . . 40 . . 33 33 . 187 93 . 32 289 Highest-Rated Ally 99 | . . 16 . . 19 19 . 31 31 . 16 99 Total Orders . | . . . . . . . . . . . . . Ally Attacks 192 | . . 25 . . . . . 106 21 . 27 13 Total Damage 2994 | . . 307 . . . . . 1941 345 . 184 217 Kills 31 | . . 4 . . . . . 20 3 . 3 1 Allies Corrupted 1 | . . . . . . . . . . . . 1 Allies Melted . | . . . . . . . . . . . . . Turrets Deployed 1 | . . . . . . . . 1 . . . . Field Lobotomies 3 | . . . . . 3 . . . . . . . Intel | -11 -10 -10 -9 -9 -9 -8 -8 -8 -7 -7 -7 -7 ------- Run | Scr Mat Min Mat Min Exi Min Mat Sto Fac Low Low Zio Robot Analysis Total . | . . . . . . . . . . . . . Derelict Logs Recovered 8 | . . 1 . 2 . . . . . 1 3 1 Drone Launches . | . . . . . . . . . . . . . Drone Recoveries . | . . . . . . . . . . . . . Exploration | -11 -10 -10 -9 -9 -9 -8 -8 -8 -7 -7 -7 -7 ------------- Run | Scr Mat Min Mat Min Exi Min Mat Sto Fac Low Low Zio Turns Passed 58445 | 106 1722 432 2011 975 2918 504 1017 2534 3157 1931 1663 39475 Spaces Moved 15100 | 65 793 176 787 483 1260 224 374 749 1296 736 788 7369 Core 2786 | 1 . . . . . . . . . . . 2785 Treads 7486 | . 747 176 787 483 1260 224 374 749 1296 736 654 . Legs . | . . . . . . . . . . . . . Wheels 110 | 64 46 . . . . . . . . . . . Hover 4718 | . . . . . . . . . . . 134 4584 Flight . | . . . . . . . . . . . . . Fastest Speed 50 | 50 80 160 180 180 180 200 200 200 183 186 72 72 Average Speed 352 | 84 168 179 180 180 197 200 204 218 191 186 165 526 Slowest Speed 1450 | 90 180 180 180 180 200 200 220 260 210 186 250 1450 Overloaded Moves . | . . . . . . . . . . . . . Propulsion Burnouts . | . . . . . . . . . . . . . Robots Hopped . | . . . . . . . . . . . . . Cave-ins Triggered . | . . . . . . . . . . . . . Exploration Rate (%) 68 | 5 97 28 89 91 91 61 40 93 31 88 81 91 Regions Visited 12 Branch Regions 8 Pre-discovered Areas 5 | . 2 . . . 1 . . . . 1 1 . Known Exits Taken 2 | . . 1 . . . . 1 . . . . . Unknown Exits Taken 10 | 1 1 . 1 1 1 1 . 1 1 1 1 . Scrap Searched 14 | . . 1 . 3 . . . . . 3 4 3 Spaces Dug 58 | . 1 . . 12 . . . 4 8 10 8 15 Terrain Destroyed 373 | . 1 . 25 38 44 17 11 11 189 10 12 15 Melee 45 | . . . . . . . . 4 8 10 8 15 Projectile 24 | . 1 . . . 9 . 3 7 . . 4 . AOE 304 | . . . 25 38 35 17 8 . 181 . . . Terrain Rammed . | . . . . . . . . . . . . . Walls Destroyed . | . . . . . . . . . . . . . Machines Disabled . | . . . . . . . . . . . . . Actions | -11 -10 -10 -9 -9 -9 -8 -8 -8 -7 -7 -7 -7 --------- Run | Scr Mat Min Mat Min Exi Min Mat Sto Fac Low Low Zio Total 18831 | 90 1054 238 1159 545 1517 261 517 1495 1704 1255 989 8007 Wait 2278 | 1 160 14 179 30 55 25 34 607 144 475 10 544 Move 15088 | 64 792 175 786 482 1259 223 373 748 1295 735 787 7369 Hop . | . . . . . . . . . . . . . Pick Up 184 | 7 18 8 24 3 33 . 15 14 25 5 13 19 Fast Attach 45 | 6 2 1 3 1 1 . 3 2 8 . 9 9 Attach 74 | 1 4 2 5 2 7 . 7 4 13 2 21 6 Detach 5 | . . . . . . . 3 1 . . 1 . Swap 122 | . 6 1 15 2 10 3 11 15 38 11 9 1 Drop 151 | . 8 6 21 1 23 . 13 16 24 1 14 24 Fire 772 | 11 64 26 121 22 122 10 57 72 145 8 95 19 Melee 88 | . . . . . 7 . . 15 9 18 23 16 Ram . | . . . . . . . . . . . . . Kick . | . . . . . . . . . . . . . Crush 17 | . . 5 5 2 . . 1 1 3 . . . Escape Stasis . | . . . . . . . . . . . . . Rewire 7 | . . . . . . . . . . . 7 . Trap . | . . . . . . . . . . . . . Miscellaneous . | . . . . . . . . . . . . . Route ------- -11/Scrapyard -10/Materials (discovered 4 exits: *Mat x3 / [*Min]) -10/Mines (discovered 2 exits: *Mat x2) -9/Materials (discovered 4 exits: *Mat x2 / [*Min x2]) -9/Mines (discovered 3 exits: *Mat x2 / *Exi) -9/Exiles -8/Mines -8/Materials (discovered 2 exits: *Fac / *Sto) -8/Storage -7/Factory (discovered 4 exits: [*Fac x3] / *Low) -7/Lower Caves -7/Lower Caves (discovered 2 exits: [*Fac] / *Zio) -7/Zion (discovered 1 exit: [*Pro]) History --------- Turn | Location | Event 23 | -11/Scrapyard | Discovered new exit (range 15) 107 | -11/Scrapyard | Entered Materials 252 | -10/Materials | Discovered new exit (range 6) 304 | -10/Materials | Build established: Mutant 550 | -10/Materials | Discovered new exit (range 5) 1270 | -10/Materials | Discovered new exit (range 3) 1353 | -10/Materials | Core integrity fell below 50% 1723 | -10/Materials | Discovered new exit (range 4) 1829 | -10/Materials | Entered Mines 1964 | -10/Mines | Discovered new exit (range 12) 1979 | -10/Mines | Assisted by bots powering up and referring to "LRC-V3" 2017 | -10/Mines | Assembled infested the area 2023 | -10/Mines | Identified exit to Materials 2188 | -10/Mines | Core integrity fell below 20% 2223 | -10/Mines | Destroyed 8 combat bots 2261 | -10/Mines | Entered Materials 2261 | -9/Materials | Evolved 2 slots: Utility x2 2467 | -9/Materials | Discovered new exit (range 13) 2560 | -9/Materials | Build established: Hauler-Mutant 2738 | -9/Materials | Discovered new exit (range 6) 3255 | -9/Materials | Discovered new exit (range 11) 3395 | -9/Materials | Core integrity fell below 50% 3798 | -9/Materials | Discovered new exit (range 3) 4272 | -9/Materials | Entered Mines 4714 | -9/Mines | Discovered new exit (range 15) 4819 | -9/Mines | Learned Materials emergency access door positions 4942 | -9/Mines | Discovered new exit (range 6) 5239 | -9/Mines | Deemed a non-threat by the Exiles lab entrance 5239 | -9/Mines | Discovered new exit (range 5) 5247 | -9/Mines | Entered Exiles 5292 | -9/Exiles | Met 8R-AWN 5319 | -9/Exiles | Met EX-HEX 5416 | -9/Exiles | Met EX-DEC 5508 | -9/Exiles | Discovered new exit (range 10) 5926 | -9/Exiles | Met EX-BIN 6042 | -9/Exiles | Aligned with FarCom system 6044 | -9/Exiles | Given EX-Vault access code 6090 | -9/Exiles | Opened EX-Vault 6100 | -9/Exiles | Found Field Lobotomy Kit 6111 | -9/Exiles | Found Lightpack 2.0 6126 | -9/Exiles | Found Chronowheel 6173 | -9/Exiles | Warned to stay clear of 0b10 Research branches 6410 | -9/Exiles | Visited The Gauntlet 6681 | -9/Exiles | Learned location of Zion (-7) 6980 | -9/Exiles | Attacked by the Exiles 7199 | -9/Exiles | Destroyed 8R-AWN 7211 | -9/Exiles | Found Prototype Ballistic Gun 7212 | -9/Exiles | Identified 8R-AWN's Boregun 7241 | -9/Exiles | Found Prototype Processor 7610 | -9/Exiles | Destroyed EX-HEX 7710 | -9/Exiles | Destroyed EX-BIN 7748 | -9/Exiles | Destroyed EX-DEC 7753 | -9/Exiles | Assimilated 5L-KAT with FLK Orb 7756 | -9/Exiles | Assimilated ZX-C33 with FLK Orb 7768 | -9/Exiles | Assimilated FK-NX9(z) with FLK Orb 7844 | -9/Exiles | Found Deploy-a-Sentry 7881 | -9/Exiles | Found Prototype Device 8165 | -9/Exiles | Left Exiles lab with Deploy-a-Sentry 8165 | -9/Exiles | Entered Mines 8165 | -8/Mines | Accompanied by 3 allies 8237 | -8/Mines | Core integrity fell below 20% 8629 | -8/Mines | Discovered new exit (range 6) 8669 | -8/Mines | Entered Materials 8669 | -8/Materials | Evolved 2 slots: Utility x2 8670 | -8/Materials | Identified exit to Storage 8670 | -8/Materials | Identified System Purifier 9107 | -8/Materials | Garrison activated, responded to threat 9218 | -8/Materials | Destroyed 7 combat bots 9218 | -8/Materials | Garrison activated, responded to threat 9604 | -8/Materials | Discovered new exit (range 10) 9686 | -8/Materials | Entered Storage 10779 | -8/Storage | Core integrity fell below 50% 10826 | -8/Storage | Core integrity fell below 20% 10899 | -8/Storage | Discovered new exit (range 6) 11344 | -8/Storage | Identified Exp. Targeting Computer 11581 | -8/Storage | Assisted by bots powering up and referring to "LRC-V3" 11823 | -8/Storage | Met a pair of Derelict thieves 11883 | -8/Storage | Build established: Commander-Mutant 11920 | -8/Storage | DAS Turret deployed 12193 | -8/Storage | Build established: Hauler-Mutant 12220 | -8/Storage | Entered Factory 12220 | -7/Factory | Evolved 2 slots: Propulsion x1, Utility x1 12516 | -7/Factory | Discovered new exit (range 4) 13201 | -7/Factory | Discovered new exit (range 8) 13907 | -7/Factory | System corruption reached 10% 14044 | -7/Factory | Allied Derelicts emerged from ambush trap array 14496 | -7/Factory | Discovered new exit (range 3) 14601 | -7/Factory | Garrison activated, responded to threat 14620 | -7/Factory | First assault squad dispatched 14946 | -7/Factory | Discovered new exit (range 14) 15377 | -7/Factory | Entered Lower Caves 16698 | -7/Lower Caves | Encountered a Warlord checkpoint 16993 | -7/Lower Caves | Attracted the attention of an 0b10 checkpoint 17289 | -7/Lower Caves | Discovered new exit (range 8) 17308 | -7/Lower Caves | Entered another Lower Caves area 17357 | -7/Lower Caves | Attracted the attention of an 0b10 outpost 17419 | -7/Lower Caves | Core integrity fell below 50% 17481 | -7/Lower Caves | Lost 5 parts (1p1n1u2w) 17663 | -7/Lower Caves | Learned 8 Factory zone layouts 17668 | -7/Lower Caves | Learned location of Extension (-6) 17707 | -7/Lower Caves | Spotted Z7-NZL(f) 17708 | -7/Lower Caves | Encountered a Master Thief 17862 | -7/Lower Caves | Spotted 84-CM9(f) 17863 | -7/Lower Caves | Encountered a Master Thief 17868 | -7/Lower Caves | Discovered new exit (range 4) 18245 | -7/Lower Caves | Lost 7 parts (1p3n2u1w) 18369 | -7/Lower Caves | Found Prototype Device 18410 | -7/Lower Caves | Identified Heart of Steel 18611 | -7/Lower Caves | Lost 3 parts (2n1u) 18653 | -7/Lower Caves | Learned Factory stockpile data 18698 | -7/Lower Caves | Spotted PQ-J4E(f) 18699 | -7/Lower Caves | Encountered a Master Thief 18706 | -7/Lower Caves | 8R-AWN's Boregun stolen by Master Thief 18714 | -7/Lower Caves | Spotted 70-0HY(f) 18717 | -7/Lower Caves | Encountered a Master Thief 18718 | -7/Lower Caves | Adv. Weapon Cycler stolen by Master Thief 18857 | -7/Lower Caves | Core integrity fell below 20% 18930 | -7/Lower Caves | Discovered new exit (range 10) 18958 | -7/Lower Caves | Encountered a Warlord checkpoint 18971 | -7/Lower Caves | Entered Zion 19022 | -7/Zion | Discovered new exit (range 16) 19058 | -7/Zion | Found CR-A16's Pointy Stick 19155 | -7/Zion | Build established: Scavenger-Mutant 19346 | -7/Zion | Found Prototype Device 19346 | -7/Zion | Identified Phasing AFG 19487 | -7/Zion | Gained Derelict followers 55963 | -7/Zion | Heart of Steel transformed into Warbot 57348 | -7/Zion | Imprinted 57350 | -7/Zion | Declared Zion's savior 58325 | -7/Zion | Destroyed Imprinter 58326 | -7/Zion | Attacked by Zionites 58340 | -7/Zion | Extracted access codes from Imprinter's data core 58446 | -7/Zion | Destroyed by LE-A2Q(M) with Battle Rifle Last Messages --------------- 58359_ Acquired 4 matter. 58360_ Slug penetrates LA-8IJ(b). 58360_ LA-8IJ(b) suffers critical hit. 58360_ Machine disabled. 58361_ Acquired 3 matter. 58365_ Slug penetrates Memory Banks. 58367_ Slug penetrates LA-8IJ(b). 58383_ LA-8IJ(b) destroyed. 58392_ Slug penetrates IMP:G-0014175/C-0630194. 58397_ Acquired 16 matter. 58400_ Acquired 9 matter. 58413_ QO-FXC(z) uncovers a bit of Twisted Machinery. 58414_ 0M-VQS(z) pulls a Mak. Hammer out of the Twisted Machinery. 58415_ Slug penetrates Cloak Generator. 58415_ Cloak Generator disabled. 58423_ PQ-T6T(z) pulls a Mak. Hammer out of the Twisted Machinery. 58426_ X8-74Z(z) pulls a Mak. Axe out of the Twisted Machinery. 58432_ CK-8QI(z) pulls a Mak. Shrapnel Gun out of the Twisted Machinery. 58435_ RI-FBW(z) pulls a Mak. Laser out of the Twisted Machinery. 58435_ LE-SIW(z) pulls a Mak. Hammer out of the Twisted Machinery. Map ----- +----------------------------------------------------+ | ?????????????????????????????????????????????????? | | ?????????????????????????????????????????????????# | | ?????????????????????????????????????????????????# | | ?????????????????????????????????###?###?????????# | | ?????????????????????????????????#"###"######????# | | ???????????????????????????????###""""""#"""###??# | | ??????????????????????????????##"#""""""""""""#### | | ?????????????????????????????##"""" "" """#"# | | ???????????????????????##??###"#"" """" | | ???????????????????????#"###"##"" ! " | | ???????????????????????#"""""""" "" | | ????????????????#####?##""""""" """ | | ????????????????#"""#?#""" """ | | ????????????????#"""####"" """" "" | | ????????????????" X""#"#"" """"""" | | ????????????????# ""#"""" "#"#"""" | | ???????????????## """"""" "###""#"" | | ???????????????"* "#######" "" | | ???????????????" """###""" "" | | ???????????????# """"""" ""##"#""" | | ????????????""""""""#""""" """""""" | | ????????????###"#"""####"" "" "" | | ??????????????#######?#""" M """ "" "" | | ?????????????????????##"" """" "" "" | | ????????????????????##"" """#"" | | ????????????????????#"" @ """"""""""" | | ????????????????????#""" """""""""""" | | ????????????????????##""" """"" """" """"""" | | ??????????????????###"""" """ """ """"""" | | ??????????????????#""" " "" "" """"""" | | ??????????????????#"" z """"" """""## | | ??????????????????#""" z """""" " ""##### | | ??????????????????##"""""" ""##"""" "##???# | | ???????????????????###""""" "######" "##???? | | ?????????????????????##"" " "#####"" ""#?##? | | ??????????????????????#" """##""" ""##"#? | | ?????????????????????##" ""##""" """"#" | | ????????????????????##"" """"" """ | | ????????????????????#""" "" | | ????????????????????#"""" " | | ????????????????????#""""" " | | ?????????????????????###"" "" "" | | ???????????????????????#"" "" """ "" """ | | ???????????????????????##"""""""" """ """"""## | | ???????????????????????#""#""##"" " """""""# | | ???????????????????????########"" "" | | ?????????????????????###???#""""" "# | | ?????????????????????#""###"#"""" """ "# | | ?????????????????????#"""""# """ "" | | ???????????##?######?#"" "" ## ## """ " | +----------------------------------------------------+ Best States ------------- Heat Dissipation 61 Energy Generation 18 Energy Capacity 290 Matter Stores 300 Matter Capacity 300 Sight Range 16 Terrain Scan Range 16 Terrain Scan Density 10 Jamming Range 16 Armor Coverage 600 Resistance: KI 20 Core Shielding 20 Propulsion Shielding 66 Weapon Shielding 66 Weapon Cycling 25 Evasion (%) 50 Targeting Accuracy 12 Melee Accuracy 6 Core Analysis 10 Recoil Reduction 3 Defensive Hacking 21 Item Schematics ----------------- Hcp. Storage Unit | -10/Materials | Hacked Med. Storage Unit | -10/Materials | Hacked Cmb. Airjet | -9/Materials | Scanalyzed Lrg. Storage Unit | -9/Materials | Scanalyzed Cmb. Antigrav System | -8/Materials | Scanalyzed Gravity Neutralizing Apparatus | -8/Materials | Scanalyzed Battle Rifle | -7/Zion | Free Battle Cannon | -7/Zion | Free Slug Cannon | -7/Zion | Free Bore Cannon | -7/Zion | Free Robot Schematics ------------------ None Fabricated ------------ Nothing Alien Tech Used ----------------- None Achievements -------------- None Challenges ------------ None Game ------ Seed GhostGreatMultirail Manual? 0 Play Time 03:01:38 Cumulative 218.8 hours Start 2020.10.13 @ 12:13:46 End 2020.10.13 @ 17:47:15 Sessions 1 Manual Loads 0 Difficulty Rogue Special Mode None Game No. 240 Rogue 240 Adventurer 0 Explorer 0 Win Type - Total 2 Types 2/0/0/0/0/0/0/0/0 Lore% 61 Gallery% 75 Achievement% 58 Wizard Run 0 Options --------- ASCII 0 Keyboard 0 Movement Numpad Keybinds 0 Fullscreen 2 Font 24/Terminus Map View 76x50 Tactical HUD 1 Map Filters NONE Filters NONE Steam 1 RUN: e25bd18c-3d22-4dea-8332-302857a08b6d